Cogmind - Beta 12 @@@ ROGUE MODE // 2023.12.23 @ 08:11:59 Player: puppuppit Result: Destroyed by L-31 Rogue with Katana Performance ------------- Evolutions (2) 1000 Regions Visited (9) 1800 Robots Destroyed (92) 460 Value Destroyed (2465) 2465 Prototype IDs (33) 660 Alien Tech Used (0) 0 Bonus (1357) 1357 TOTAL SCORE: 7742 Bonus ------- High Alert Combat Kills 372 Follower Combat Kills 14 Entered Garrisons 200 Used RIF Installer 500 Aligned with FarCom 300 Friendly Fire -29 Cogmind --------- Core Integrity 0/550 Matter 163/300 Energy 140/160 System Corruption 8% Temperature Cool (27) Movement Core (200) Ox3 Location -8/Materials Parts ------- > --- POWER (1) -------- Light Nuclear Core > --- PROPULSION (2) --- (None) > --- UTILITY (6) ------ Advanced Salvage Targeting Computer Advanced Targeting Computer Improved Kinecellerator System Shield System Shield > --- WEAPON (2) ------- (None) > --- INVENTORY (5) ---- XL Autogun Array Mass Driver Peak State ------------ > --- POWER ------------ Light Nuclear Core > --- PROPULSION ------- Antigrav System Linear Gravjet > --- UTILITY ---------- Improved Heat Sink Improved Kinecellerator Hacking Suite System Shield Advanced System Shield Improved Recalibrator > --- WEAPON ----------- Heavy Particle Cannon Mass Driver > --- INVENTORY -------- Antigrav System XL Autogun Array [Rating: 55] Favorites ----------- Power Light Nuclear Core Engine Light Ion Engine Power Core Light Nuclear Core Propulsion Hover Unit Leg Aluminum Leg Wheel Armored Wheel Hover Unit Hover Unit Flight Unit Flight Unit Utility Hacking Suite Device Weight Redist. System Storage Small Storage Unit Processor Improved Targeting Computer Hackware Hacking Suite Protection Improved Utility Shielding Weapon Light Assault Rifle Energy Gun Medium Laser Energy Cannon Heavy Particle Cannon Ballistic Gun Light Assault Rifle Ballistic Cannon Improved Light Cannon Launcher Rocket Launcher Impact Weapon Great Maul Build | -11 -10 -10 -9 -9 -9 -8 -8 -8 -8 ------- Run | Jun Mat Min Mat Min Exi Min Mat Gar Mat Slots Evolved 4 | . . . 2 . . . 2 . . Power . | . . . . . . . . . . Propulsion . | . . . . . . . . . . Utility 4 | . . . 2 . . . 2 . . Weapon . | . . . . . . . . . . Parts Attached 152 | 7 22 6 31 7 2 1 19 41 16 Power 19 | 1 2 1 3 1 . 1 1 6 3 Engine 13 | 1 2 1 3 1 . 1 . 3 1 Core 6 | . . . . . . . 1 3 2 Reactor . | . . . . . . . . . . Propulsion 36 | 2 6 3 4 1 . . 5 12 3 Treads . | . . . . . . . . . . Leg 1 | . . . . . . . . 1 . Wheel 4 | 2 2 . . . . . . . . Hover 17 | . 4 1 2 1 . . 4 2 3 Flight 14 | . . 2 2 . . . 1 9 . Utility 33 | 1 2 . 4 3 1 . 6 11 5 Device 15 | . 1 . 1 1 1 . 2 8 1 Storage 4 | 1 . . . . . . 2 . 1 Processor 5 | . . . 1 2 . . . 1 1 Hackware 8 | . 1 . 2 . . . 2 1 2 Protection 1 | . . . . . . . . 1 . Artifact . | . . . . . . . . . . Weapon 64 | 3 12 2 20 2 1 . 7 12 5 Energy Gun 1 | 1 . . . . . . . . . Energy Cannon 11 | . . . . . . . 3 8 . Ballistic Gun 31 | 2 8 . 16 1 1 . . 3 . Ballistic Cannon 6 | . . . . . . . . 1 5 Launcher 14 | . 4 2 4 1 . . 3 . . Special Weapon . | . . . . . . . . . . Impact Weapon 1 | . . . . . . . 1 . . Slashing Weapon . | . . . . . . . . . . Piercing Weapon . | . . . . . . . . . . Special Melee Weapon . | . . . . . . . . . . Unidentified Prototypes 1 | . . . . . . . . . 1 Parts Lost 31 | . . 4 3 4 . . 7 8 5 Power 5 | . . 1 1 1 . . 1 1 . Propulsion 13 | . . 3 1 1 . . 3 2 3 Utility 9 | . . . 1 2 . . 1 4 1 Weapon 4 | . . . . . . . 2 1 1 Highest Loss Streak 7 | . . 2 1 3 . . 7 2 5 To Critical Strikes . | . . . . . . . . . . Average Slot Usage (%) 89 | . 92 73 82 87 98 100 79 96 99 Engine 5 | . 13 5 9 4 11 11 4 . . Core 3 | . . . . . . . 1 8 9 Wheel 1 | . 12 . . . . . . . . Hover 13 | . 15 17 4 22 22 22 9 9 18 Flight 5 | . . 3 16 . . . 2 7 . Device 11 | . . . 7 7 11 11 14 23 15 Storage 8 | . 14 14 11 11 11 11 10 . 7 Processor 9 | . . . 4 13 22 22 18 10 17 Hackware 12 | . 7 14 20 12 . . 7 15 13 Energy Cannon 2 | . . . . . . . . 7 . Ballistic Gun 11 | . 26 17 7 16 20 22 5 4 . Ballistic Cannon 2 | . . . . . . . . 4 16 Naked Turns . | . . . . . . . . . . Heaviest Build 30 | 14 17 10 12 12 14 14 19 30 29 Greatest Support 26 | 26 26 12 12 12 18 18 20 26 20 Greatest Overweight (x) 4 | 1 2 1 2 . . . 1 1 4 Average Overweight (x) . | . . . . . . . . . . Largest Inventory Capacity 8 | 8 8 8 8 8 8 8 8 8 8 Average Capacity 7 | 7 8 8 8 8 8 8 8 5 7 Most Carried 8 | 1 8 8 8 8 8 8 8 8 8 Average Carried 6 | . 7 7 7 6 7 8 7 5 7 Final Capacity 8 | 8 8 8 8 8 8 8 8 5 5 Final Carried 8 | 1 8 7 6 6 8 8 8 5 5 Class Distribution -------------------- 42% | Mutant 26% | Hacker-Mutant 23% | Scavenger-Mutant 3% | Hacker-Sprinter Dominant Class ---------------- Scavenger-Mutant | -10/Materials Mutant | -10/Mines Scavenger-Mutant | -9/Materials Scavenger-Mutant | -9/Mines Mutant | -9/Exiles Mutant | -8/Mines Mutant | -8/Materials Hacker-Mutant | -8/Garrison Hacker-Mutant | -8/Materials Resources | -11 -10 -10 -9 -9 -9 -8 -8 -8 -8 ----------- Run | Jun Mat Min Mat Min Exi Min Mat Gar Mat Matter Collected 2809 | 264 194 211 849 79 . 71 130 785 226 Remotely 297 | . . . . . . . . 297 . Salvage Created 2285 | . 243 154 487 89 . 41 249 705 317 Parts 169 | . 30 11 48 3 . 5 13 35 24 Haulers Intercepted . | . . . . . . . . . . Recyclers Shooed . | . . . . . . . . . . Parts Field Recycled . | . . . . . . . . . . Retrieved Matter . | . . . . . . . . . . Parts Self-Destructed . | . . . . . . . . . . Prevented . | . . . . . . . . . . Kills | -11 -10 -10 -9 -9 -9 -8 -8 -8 -8 ------- Run | Jun Mat Min Mat Min Exi Min Mat Gar Mat Combat Hostiles Destroyed 78 | . 10 6 11 13 . 3 8 23 4 Melee 2 | . . . . . . . 2 . . Guns 26 | . 3 2 8 3 . 3 1 6 . Cannons 22 | . . . . . . . 1 17 4 AOE 28 | . 7 4 3 10 . . 4 . . Classes Destroyed 13 | . 7 . 1 1 . . . 2 2 Worker 5 | . 1 . 2 . . . 1 . 1 Builder 5 | . 1 1 3 . . . . . . Tunneler 1 | . 1 . . . . . . . . Recycler 1 | . . . . . . . . . 1 Operator 6 | . 2 . 2 . . . . . 2 Watcher 8 | . 2 . 4 . . . . . 2 Swarmer 28 | . 6 3 6 . . 3 2 8 . Cutter 2 | . . . . . . . . 2 . Grunt 24 | . 4 3 2 . . . 3 10 2 Brawler 2 | . . . . . . . . 2 . Sentry 9 | . . . 3 1 . . 3 1 1 Hunter 1 | . . . . . . . . . 1 Assembled 12 | . . . . 12 . . . . . Best Kill Streak 12 | . 8 3 8 12 . 3 3 4 3 Combat Bots Only 12 | . 4 3 5 12 . 3 2 4 2 Max Kills in Single Turn 5 | . 5 2 3 4 . 1 2 1 1 Gunslinging . | . . . . . . . . . . Exploded 4 | . 3 2 2 4 . . 1 . . Melee 1 | . . . . . . . 1 . . Uniques/NPCs Destroyed . | . . . . . . . . . . Combat | -11 -10 -10 -9 -9 -9 -8 -8 -8 -8 -------- Run | Jun Mat Min Mat Min Exi Min Mat Gar Mat Damage Taken 3262 | . 126 514 260 276 . 38 567 783 698 Core 911 | . 12 209 47 55 . 8 193 171 216 Absorbed by Shields . | . . . . . . . . . . Redirected to Shielding 4 | . . . . . . . . 4 . Regen/Repaired (Parts) 47 | . 27 . 20 . . . . . . Core Remaining (%) 61 | 100 . 11 . . . 72 . . . Volleys Fired 258 | . 34 32 50 12 . 3 18 84 25 Largest 2 | . 2 2 2 2 . 2 2 2 2 Hottest 150 | . 56 53 53 58 . 50 85 150 96 Shots Fired 421 | . 69 40 71 22 . 7 31 132 49 Gun 239 | . 58 33 64 16 . 7 13 48 . Cannon 143 | . . . . . . . 10 84 49 Launcher 39 | . 11 7 7 6 . . 8 . . Special . | . . . . . . . . . . Kinetic 307 | . 58 33 64 16 . 7 13 68 48 Thermal 75 | . . . . . . . 10 64 1 Explosive 39 | . 11 7 7 6 . . 8 . . Electromagnetic . | . . . . . . . . . . Robot Hit Streak 20 | . 5 8 9 5 . 3 20 20 4 Robot Miss Streak 9 | . 4 3 9 4 . 1 1 3 3 Penetration Max . | . . . . . . . . . . Secondary Targets 2 | . . . . . . 1 . 1 . Max Gunslinging Chain 1 | . . . . . . 1 . 1 . Shots Hit Robots 246 | . 33 24 37 10 . 4 29 85 24 Core Hits 160 | . 23 14 33 24 . 3 12 37 14 Critical Kills 1 | . 1 . . . . . . . . Critical Parts Destroyed 1 | . . . . . . . 1 . . Critical Strikes 7 | . 1 . . . . . 1 2 3 Destroy 1 | . 1 . . . . . . . . Blast 5 | . . . . . . . . 2 3 Smash 1 | . . . . . . . 1 . . Melee Attacks 3 | . . . . . . . 3 . . Impact 3 | . . . . . . . 3 . . Slashing . | . . . . . . . . . . Piercing . | . . . . . . . . . . Sneak Attacks . | . . . . . . . . . . Combat Hostiles . | . . . . . . . . . . Follow-up Attacks . | . . . . . . . . . . Damage Inflicted 7334 | . 1071 489 1181 1086 . 74 1000 1845 588 Guns 1824 | . 357 184 573 160 . 74 217 259 . Cannons 2389 | . . . . . . . 215 1586 588 Explosions 2983 | . 714 305 608 926 . . 430 . . Melee 138 | . . . . . . . 138 . . Ramming . | . . . . . . . . . . Kinetic 3072 | . 357 184 573 160 . 74 217 919 588 Thermal 1415 | . . . 274 . . . 215 926 . Explosive 2709 | . 714 305 334 926 . . 430 . . Electromagnetic . | . . . . . . . . . . Impact 138 | . . . . . . . 138 . . Slashing . | . . . . . . . . . . Piercing . | . . . . . . . . . . Highest Corruption 8 | . 1 1 . 2 2 2 . 8 8 Average Corruption 3 | . 1 1 . 1 2 2 . 7 8 Corruption Purged . | . . . . . . . . . . Corruption Blocked . | . . . . . . . . . . Effects 57 | . 5 6 . . . 3 . 21 22 Message Errors 20 | . 1 6 . . . 1 . 5 7 Matter Fused 10 | . 1 . . . . . . 5 4 Heat Flow Errors 5 | . 1 . . . . . . 2 2 Energy Discharges 6 | . 1 . . . . . . 4 1 Parts Rejected 2 | . . . . . . . . . 2 Parts Fused 1 | . . . . . . . . . 1 Data Loss (minor) 5 | . . . . . . 1 . 4 . Data Loss (major) 1 | . . . . . . . . . 1 Misfires 4 | . 1 . . . . 1 . . 2 Weapon Failures 3 | . . . . . . . . 1 2 Overload Shots . | . . . . . . . . . . Overflow Damage 191 | . 43 7 8 53 . . 75 5 . Projectiles 17 | . . . . . . . 12 5 . Explosions 111 | . 43 7 8 53 . . . . . Melee 63 | . . . . . . . 63 . . Knockbacks 10 | . . . . . . . . 4 6 Impact . | . . . . . . . . . . Kinetic 10 | . . . . . . . . 4 6 Secondary . | . . . . . . . . . . Self-Inflicted Damage 83 | . 20 63 . . . . . . . Shots 3 | . 1 2 . . . . . . . Rammed . | . . . . . . . . . . Targets Rammed . | . . . . . . . . . . Kicked . | . . . . . . . . . . Crushed . | . . . . . . . . . . Highest Temperature 405 | . 205 13 43 26 . 16 81 405 264 Average Temperature 75 | . 27 5 10 7 . 8 33 109 95 Received Heat Transfer 1131 | . 63 162 72 60 . . 162 297 315 Effects 5 | . . . . . . . . 5 . Interference 5 | . . . . . . . . 5 . Siege Activations . | . . . . . . . . . . Robots Corrupted . | . . . . . . . . . . Combat Hostiles . | . . . . . . . . . . Parts Fried . | . . . . . . . . . . Impact Corruptions 3 | . . . . . . . 3 . . Robots Melted . | . . . . . . . . . . Combat Hostiles . | . . . . . . . . . . Parts Melted 7 | . . . 3 . . . . 4 . Heat Transferred 1865 | . . . 200 . . . 333 1332 . Parts Sabotaged . | . . . . . . . . . . Parts Stolen . | . . . . . . . . . . Parts Stripped . | . . . . . . . . . . Power Chain Reactions . | . . . . . . . . . . Missiles Intercepted . | . . . . . . . . . . Alert | -11 -10 -10 -9 -9 -9 -8 -8 -8 -8 ------- Run | Jun Mat Min Mat Min Exi Min Mat Gar Mat Peak Influence 1134 | . 393 213 723 334 . 70 503 1134 601 Initial 552 | . . 42 52 281 . . 27 216 552 Average 390 | . 123 68 465 304 . 24 254 732 461 Maximum Alert Level 4 | . 1 1 3 1 . . 2 4 2 Low Security (%) 36 | 100 73 91 29 . . 100 40 . . Level 1 17 | . 26 8 10 100 . . 41 11 1 Level 2 28 | . . . 42 . . . 18 38 98 Level 3 16 | . . . 17 . . . . 46 . Level 4 1 | . . . . . . . . 4 . Level 5 . | . . . . . . . . . . High Security . | . . . . . . . . . . Max Security . | . . . . . . . . . . Squads Dispatched 9 | . 2 2 . . . . 1 . 4 Investigation 5 | . 1 2 . . . . 1 . 1 Extermination . | . . . . . . . . . . Reinforcement 3 | . 1 . . . . . . . 2 Assault 1 | . . . . . . . . . 1 Garrison . | . . . . . . . . . . Intercept . | . . . . . . . . . . Searches Triggered . | . . . . . . . . . . Construction Impeded . | . . . . . . . . . . Haulers Reinforced . | . . . . . . . . . . Active Scanning Responses . | . . . . . . . . . . Cargo Convoy Interrupts . | . . . . . . . . . . Stealth | -11 -10 -10 -9 -9 -9 -8 -8 -8 -8 --------- Run | Jun Mat Min Mat Min Exi Min Mat Gar Mat Distress Signals 7 | . 1 . 2 . . . 3 . 1 Communications Jammed . | . . . . . . . . . . Distress Signals . | . . . . . . . . . . Times Spotted 147 | . 19 12 26 21 . 3 16 30 20 Peak Tracking Total 14 | . 5 3 5 14 . 3 5 6 9 Tactical Retreats 18 | . . 3 . 2 . . 4 8 1 Traps | -11 -10 -10 -9 -9 -9 -8 -8 -8 -8 ------- Run | Jun Mat Min Mat Min Exi Min Mat Gar Mat Traps Triggered 6 | . 1 . . . . . . 5 . Indirectly . | . . . . . . . . . . Trap Hack Attempts . | . . . . . . . . . . Triggered . | . . . . . . . . . . Disarmed 13 | . 4 . 6 . . . . . 3 Reprogrammed . | . . . . . . . . . . Reused . | . . . . . . . . . . Traps Extracted . | . . . . . . . . . . Installed . | . . . . . . . . . . Triggered . | . . . . . . . . . . Machines | -11 -10 -10 -9 -9 -9 -8 -8 -8 -8 ---------- Run | Jun Mat Min Mat Min Exi Min Mat Gar Mat Machines Disabled 28 | . 3 3 17 . . . 4 . 1 Max in Single Turn 13 | . 1 2 13 . . . 3 . 1 Machines Repaired . | . . . . . . . . . . Machines Sabotaged . | . . . . . . . . . . Overloaded Fab Kills . | . . . . . . . . . . Hacking | -11 -10 -10 -9 -9 -9 -8 -8 -8 -8 --------- Run | Jun Mat Min Mat Min Exi Min Mat Gar Mat Machines Accessed 41 | . 6 2 12 1 5 1 6 3 5 Terminals 26 | . 5 1 8 . . 1 4 3 4 Fabricators . | . . . . . . . . . . Repair Stations 3 | . 1 . 2 . . . . . . Recycling Units . | . . . . . . . . . . Scanalyzers 4 | . . . 2 . . . 1 . 1 Garrison Access 1 | . . . . . . . 1 . . Total Hacks 162 | . 24 4 36 1 50 2 18 8 19 Successful 106 | . 11 3 23 1 50 1 7 3 7 Failed 55 | . 13 1 12 . . 1 11 5 12 Catastrophic 3 | . . . 1 . . . . . 2 Database Lockouts 1 | . . . 1 . . . . . . Manual 27 | . 1 3 13 . 1 2 5 . 2 Terminals 92 | . 21 3 26 . . 2 14 8 18 Fabricators . | . . . . . . . . . . Repair Stations 8 | . 3 . 5 . . . . . . Recycling Units . | . . . . . . . . . . Scanalyzers 9 | . . . 5 . . . 3 . 1 Garrison Access 1 | . . . . . . . 1 . . Terminal Hacks 92 | . 9 3 14 1 50 1 4 3 7 Record 53 | . 2 . 2 . 49 . . . . Robot Analysis 7 | . . 1 4 . . . 1 . 1 Prototype ID Bank 5 | . 1 . 2 . . 1 1 . . Open Door 2 | . . 1 . 1 . . . . . Level Access Points 1 | . . . 1 . . . . . . Branch Access Points 5 | . 1 . 2 . . . . . 2 Emergency Access Points 1 | . . . . . . . . 1 . Repair Station Index 1 | . . . 1 . . . . . . Alert Level 3 | . 1 . . . . . 1 . 1 Unreport Threat 2 | . 1 . . . . . . . 1 Locate Traps 1 | . 1 . . . . . . . . Disarm Traps 3 | . 1 . 1 . . . . . 1 Zone Layout 5 | . 1 1 1 . . . 1 . 1 Patrol Navigation 1 | . . . . . . . . 1 . Security Stations 1 | . . . . . . . . 1 . EX-Prototype ID Bank 1 | . . . . . 1 . . . . Fabricator Hacks . | . . . . . . . . . . Repair Station Hacks 6 | . 2 . 4 . . . . . . Scan Component 3 | . 1 . 2 . . . . . . Repair 3 | . 1 . 2 . . . . . . Recycling Unit Hacks . | . . . . . . . . . . Scanalyzer 7 | . . . 5 . . . 2 . . Insert Component 3 | . . . 2 . . . 1 . . Analyze 4 | . . . 3 . . . 1 . . Garrison Access Hacks 1 | . . . . . . . 1 . . Unlock Access 1 | . . . . . . . 1 . . Unauthorized Hacks . | . . . . . . . . . . Terminals . | . . . . . . . . . . Fabricators . | . . . . . . . . . . Repair Stations . | . . . . . . . . . . Recycling Units . | . . . . . . . . . . Scanalyzers . | . . . . . . . . . . Garrison Access . | . . . . . . . . . . Data Cores Recovered 1 | . . . . . . . . . 1 Used 1 | . . . . . . . . . 1 Hacking Detections 33 | . 6 1 12 . . 1 5 3 5 Full Trace Events 7 | . 3 1 . . . . 1 1 1 Feedback Events . | . . . . . . . . . . Feedback Blocked . | . . . . . . . . . . Robot Schematics Acquired . | . . . . . . . . . . Robots Built . | . . . . . . . . . . Authchips . | . . . . . . . . . . Time . | . . . . . . . . . . Total Robot Build Rating . | . . . . . . . . . . Part Schematics Acquired 3 | . . . 2 . . . 1 . . Parts Built . | . . . . . . . . . . Authchips . | . . . . . . . . . . Time . | . . . . . . . . . . Total Part Build Rating . | . . . . . . . . . . Parts Repaired 3 | . 1 . 2 . . . . . . Time 77 | . 13 . 64 . . . . . . Parts Recycled . | . . . . . . . . . . Recycled Matter . | . . . . . . . . . . Retrieved Matter . | . . . . . . . . . . Retrieved Components . | . . . . . . . . . . Parts Scanalyzed 3 | . . . 2 . . . 1 . . Part Schematics Acquired 3 | . . . 2 . . . 1 . . Parts Damaged 1 | . . . 1 . . . . . . Bothacking | -11 -10 -10 -9 -9 -9 -8 -8 -8 -8 ------------ Run | Jun Mat Min Mat Min Exi Min Mat Gar Mat Used RIF Installer 1 | . . . . . . . . 1 . Robots Hacked . | . . . . . . . . . . Non-combat . | . . . . . . . . . . Combat . | . . . . . . . . . . Robot Hacks Applied . | . . . . . . . . . . Relay Couplers Released . | . . . . . . . . . . Fabnet Peak Effective % . | . . . . . . . . . . Robots Rewired . | . . . . . . . . . . Allies Hacked . | . . . . . . . . . . Hacks Repelled . | . . . . . . . . . . Allies | -11 -10 -10 -9 -9 -9 -8 -8 -8 -8 -------- Run | Jun Mat Min Mat Min Exi Min Mat Gar Mat Total Allies 4 | . . 3 . . . . . 1 . Largest Group 3 | . . 3 2 . . . . 1 . Highest-Rated Group 40 | . . 40 24 . . . . 20 . Highest-Rated Ally 20 | . . 16 16 . . . . 20 . Total Orders . | . . . . . . . . . . Ally Attacks 11 | . . 4 6 . . . . 1 . Total Damage 141 | . . 24 72 . . . . 45 . Kills 2 | . . . 2 . . . . . . Allies Corrupted . | . . . . . . . . . . Allies Melted . | . . . . . . . . . . Intel | -11 -10 -10 -9 -9 -9 -8 -8 -8 -8 ------- Run | Jun Mat Min Mat Min Exi Min Mat Gar Mat Robot Analysis Total 7 | . . 1 4 . . . 1 . 1 Derelict Logs Recovered 3 | . . 2 . 1 . . . . . Drone Launches . | . . . . . . . . . . Drone Recoveries . | . . . . . . . . . . Exploration | -11 -10 -10 -9 -9 -9 -8 -8 -8 -8 ------------- Run | Jun Mat Min Mat Min Exi Min Mat Gar Mat Turns Passed 5094 | 45 652 737 661 189 248 185 460 1440 477 Spaces Moved 5749 | 38 684 903 896 238 435 294 658 1241 362 Core 127 | 1 . 2 21 . . . 99 2 2 Treads . | . . . . . . . . . . Legs 15 | . . . . . . . . 15 . Wheels 257 | 37 220 . . . . . . . . Hover 3715 | . 464 773 190 238 435 294 305 656 360 Flight 1635 | . . 128 685 . . . 254 568 . Fastest Speed 32 | 50 56 32 32 56 56 56 35 34 46 Average Speed 59 | 87 67 54 44 56 56 56 48 67 95 Slowest Speed 250 | 95 185 100 150 56 56 56 100 120 250 Overloaded Moves . | . . . . . . . . . . Propulsion Burnouts . | . . . . . . . . . . Robots Hopped 23 | . . 3 5 . . . 15 . . Cave-ins Triggered . | . . . . . . . . . . Exploration Rate (%) 65 | 3 84 95 79 57 92 67 51 88 34 Regions Visited 9 Branch Regions 4 Pre-discovered Areas 2 | . . 1 . . 1 . . . . Known Exits Taken 4 | . 1 . 1 . . 1 1 . . Unknown Exits Taken 4 | 1 . 1 . 1 1 . . . . Scrap Searched 2 | . . 1 . 1 . . . . . Spaces Dug 29 | . . 22 . . . . . . 7 Terrain Destroyed 312 | . 58 64 79 45 . . 44 5 17 Melee . | . . . . . . . . . . Projectile 23 | . . . . . . . 1 5 17 AOE 289 | . 58 64 79 45 . . 43 . . Terrain Rammed . | . . . . . . . . . . Walls Destroyed . | . . . . . . . . . . Machines Disabled . | . . . . . . . . . . Actions | -11 -10 -10 -9 -9 -9 -8 -8 -8 -8 --------- Run | Jun Mat Min Mat Min Exi Min Mat Gar Mat Total 7032 | 46 824 1116 1108 273 438 309 753 1718 447 Wait 635 | . 35 160 101 11 . 8 52 243 25 Move 5696 | 37 683 896 885 237 434 293 630 1239 362 Hop 20 | . . 3 5 . . . 12 . . Pick Up 62 | 1 23 8 9 4 1 . 6 5 5 Fast Attach 67 | 7 8 1 8 1 . . 7 25 10 Attach 42 | . 2 4 22 3 1 . 5 4 1 Detach 29 | . . 3 18 1 . . 3 2 2 Swap 43 | . 12 1 1 3 1 1 7 12 5 Drop 99 | 1 27 8 9 1 1 1 10 29 12 Fire 258 | . 34 32 50 12 . 3 18 84 25 Melee 3 | . . . . . . . 3 . . Ram . | . . . . . . . . . . Kick . | . . . . . . . . . . Crush . | . . . . . . . . . . Escape Stasis 75 | . . . . . . . . 75 . Rewire 3 | . . . . . . 3 . . . Trap . | . . . . . . . . . . Miscellaneous . | . . . . . . . . . . Route ------- -11/Junkyard -10/Materials (discovered 5 exits: *Mat x3 / *Min x2) -10/Mines (discovered 2 exits: *Mat x2) -9/Materials (discovered 4 exits: *Mat x3 / *Min) -9/Mines (discovered 2 exits: *Mat / *Exi) -9/Exiles -8/Mines (discovered 2 exits: *Mat x2) -8/Materials -8/Garrison (discovered 2 exits: *Mat x2) -8/Materials History --------- Turn | Location | Event 19 | -11/Junkyard | Discovered new exit (range 16) 46 | -11/Junkyard | Entered Materials 166 | -10/Materials | Discovered new exit (range 13) 197 | -10/Materials | Discovered new exit (range 4) 212 | -10/Materials | Discovered new exit (range 9) 303 | -10/Materials | Discovered new exit (range 13) 398 | -10/Materials | Discovered new exit (range 14) 492 | -10/Materials | Repaired Hover Unit 563 | -10/Materials | Build established: Scavenger-Mutant 570 | -10/Materials | Identified exit to Mines 698 | -10/Materials | Entered Mines 727 | -10/Mines | YI-UF0 nonchalantly dropped a Grenade Launcher on the ground 937 | -10/Mines | Discovered new exit (range 7) 938 | -10/Mines | Learned Materials terminal intel 966 | -10/Mines | Learned location of Zion (-6) 1102 | -10/Mines | Discovered new exit (range 4) 1160 | -10/Mines | Met a Derelict shopkeep closing up shop 1230 | -10/Mines | Build established: Mutant 1242 | -10/Mines | Assisted by bots powering up and referring to "LRC-V3" 1315 | -10/Mines | Core integrity fell below 50% 1341 | -10/Mines | Core integrity fell below 20% 1435 | -10/Mines | Entered Materials 1435 | -9/Materials | Accompanied by 2 allies 1435 | -9/Materials | Evolved 2 slots: Utility x2 1436 | -9/Materials | Loaded intel: 12 terminal locations 1519 | -9/Materials | Identified exit to Mines 1578 | -9/Materials | Identified exit to Materials 1687 | -9/Materials | Repaired Cesium-ion Thruster 1738 | -9/Materials | Repaired Lgt. Ion Engine 2084 | -9/Materials | Central database locked down 2096 | -9/Materials | Entered Mines 2099 | -9/Mines | Met a Derelict who couldn't figure out how to use a Trap Extractor 2133 | -9/Mines | Received a Rocket Launcher from a helpful Derelict 2143 | -9/Mines | Joined a pair of Derelicts in attacking an 0b10 outpost 2169 | -9/Mines | Assembled infested the area 2174 | -9/Mines | Assisted by a Guerilla fighting off Assembled 2224 | -9/Mines | Destroyed 12 combat bots 2230 | -9/Mines | Discovered exit to Materials (range 6) 2235 | -9/Mines | Learned 2 Materials zone layouts 2244 | -9/Mines | Build established: Scavenger-Mutant 2253 | -9/Mines | Lost 3 parts (1n2u) 2267 | -9/Mines | Deemed a non-threat by the Exiles lab entrance 2267 | -9/Mines | Discovered new exit (range 5) 2285 | -9/Mines | Entered Exiles 2299 | -9/Exiles | Met 8R-AWN 2308 | -9/Exiles | Met EX-HEX 2327 | -9/Exiles | Met EX-BIN 2336 | -9/Exiles | Aligned with FarCom system 2336 | -9/Exiles | Given EX-Vault access code 2359 | -9/Exiles | Opened EX-Vault 2364 | -9/Exiles | Found XL Autogun Array 2377 | -9/Exiles | Warned to stay clear of 0b10 Research branches 2394 | -9/Exiles | Met EX-DEC 2428 | -9/Exiles | Visited The Gauntlet 2526 | -9/Exiles | Discovered new exit (range 14) 2533 | -9/Exiles | Left Exiles lab with XL Autogun Array 2533 | -9/Exiles | Entered Mines 2580 | -8/Mines | Discovered exit to Materials (range 8) 2611 | -8/Mines | Build established: Mutant 2632 | -8/Mines | Discovered exit to Materials (range 9) 2718 | -8/Mines | Entered Materials 2718 | -8/Materials | Evolved 2 slots: Utility x2 2985 | -8/Materials | Lost 7 parts (1p3n1u2w) 3129 | -8/Materials | Identified exit to Garrison 3178 | -8/Materials | Entered Garrison 3200 | -8/Garrison | Learned Materials security intel 3486 | -8/Garrison | Build established: Hacker-Mutant 3731 | -8/Garrison | Discovered new exit (range 8) 3738 | -8/Garrison | Triggered checkpoint 3745 | -8/Garrison | Core integrity fell below 50% 3840 | -8/Garrison | Discovered new exit (range 10) 3928 | -8/Garrison | Rescued a captive Derelict 3958 | -8/Garrison | Triggered checkpoint 4100 | -8/Garrison | Triggered checkpoint 4374 | -8/Garrison | Attempted to access garrison exit controls, blocked by remote lockdown 4440 | -8/Garrison | Build established: Mutant 4479 | -8/Garrison | Installed Relay Interface Framework 4484 | -8/Garrison | Triggered checkpoint 4618 | -8/Garrison | Entered Materials 5018 | -8/Materials | First assault squad dispatched 5081 | -8/Materials | Core integrity fell below 20% 5095 | -8/Materials | Destroyed by L-31 Rogue with Katana Last Messages --------------- 05043_ Acquired System Shield. 05044_ Acquired 4 matter. 05045_ Acquired 5 matter. 05050_ System corrupted: Substantial component data lost. 05063_ K-01 Serf cleans the Fusion Modulator. 05065_ C-30 ARC bursts open, deploying its payload. 05065_ G-50 Soldier unfolds itself. 05065_ L-31 Rogue unfolds itself. 05065_ G-47 Trooper unfolds itself. 05065_ L-31 Rogue unfolds itself. 05065_ I-25 Savior unfolds itself. 05066_ System corrupted: Matter fused (-8). 05069_ K-01 Serf collects debris. 05082_ G-47 Trooper knocked back. 05088_ Dropped Imp. Light Cannon. 05089_ Antigrav System destroyed. 05090_ Dropped Imp. Recalibrator. 05092_ Hacking Suite destroyed. 05092_ Linear Gravjet destroyed. 05093_ Imp. Light Cannon destroyed. Map ----- +----------------------------------------------------+ | ?????????????????????????????????????????????????? | | ????????????????? ?????????????????????????????? | | ?????????? ??? #???????????????????????????? | | ??????? ? ??" #???????????????????????????? | | ??????? """ #???????????????????????????? | | ???????? """ #???????????????????????????? | | ???????? #???????????????????????????? | | ????????? #???????????????????????????? | | ????????? ]]! #???????????????????????????? | | ?????????? ]]% #???????????????????????????? | | ??????????# ]! ! #???????????????????????????? | | ??????????# +???????????????????????????? | | ??????????# #???????????????????????????? | | ??????????#] """ #???????????????????????????? | | ??????????# """ #???????????????????????????? | | ??????????# """ ########????????????????????? | | ??????????# ## """ ""?????????????????? | | ??????????# [ ## """""""?????????????????? | | ??????????######## ## """""??????????????????? | | ?????????????????# ## ???????????????????? | | ?????????????????# ## ???????????????????? | | ????????????????## ## ???????????????????? | | ????????????????# ###+########;##????????????? | | ????????????????# %gu k #??????????### | | ????????????????# [[lg! gu############## | | ????????????????#! /* i@l g%%wt [ | | ????????????????# = ! ###k################# | | ????????????????###/###?# ?????#????????# %% "" | | ?????????????????""w ??# ^"""????????????# " | | ??????????????? """ ?# """ ??????????# ! | | ??????????????? """ # """ #?????????# %! | | ??????????????? # #????????## ! | | ??????????????? """# """ ??????????#" % | | ??????????????? T"# """ ??????????#T %"" | | ???????????????? """# """???????????#" """ | | ????????????????? ?? ????????????## %"" | | ?????????????????#####+?? ??????????????# | | ????????????????????????? ??????????????# % | | ?????????????????????????###??????????????# | | ??????????????????????????????????????????# ]]] | | ??????????????????????????????????????????# ]]] | | ?????????????????????????????????# # ]] | | ?????????????????????????????????# + | | ?????????????????????????????????# # | | ?????????????????????????????????# ###"+### | | ?????????????????????????????????# # # | | ?????????????????????????????????# # ! # | | ?????????????????????????????????########## !/ # | | ??????????????????????????????????????????# !/ # | | ??????????????????????????????????????????# # | +----------------------------------------------------+ Best States ------------- Heat Dissipation 45 Energy Generation 14 Energy Capacity 250 Matter Stores 300 Matter Capacity 450 Sight Range 16 Terrain Scan Range 16 Terrain Scan Density 10 Jamming Range 12 Additional Mass Support 6 Utility Shielding 66 Evasion (%) 63 Targeting Accuracy 12 Kinecelleration 40 Salvage Targeting 3 Offensive Hacking 20 Defensive Hacking 24 Item Schematics ----------------- Hacking Suite | -9/Materials | Scanalyzed Cesium-ion Thruster | -9/Materials | Scanalyzed Airjet | -8/Materials | Scanalyzed Robot Schematics ------------------ None Fabricated ------------ Nothing Alien Tech Used ----------------- None Achievements -------------- None Challenges ------------ None Game ------ Seed ImpulseMissileClaws Manual? 0 Play Time 02:00:44 Cumulative 54.6 hours Start 2023.12.23 @ 06:05:28 End 2023.12.23 @ 08:11:59 Sessions 1 Manual Loads 0 Difficulty Rogue Special Mode None Game No. 33 Rogue 33 Adventurer 0 Explorer 0 Win Type - Total 1 Types 1/0/0/0/0/0/0/0/0 Lore% 35 Gallery% 42 Achievement% 36 Wizard Run 0 Options --------- ASCII 0 Keyboard 1 Movement Arrows Keybinds 0 Fullscreen 1 Font 12/Proggy Map View 83x54 Tactical HUD 1 Map Filters NONE Filters NONE Steam 0 RUN: 1a0829b8-5072-44f8-89f7-a8944e7653ed